Cogmind - Beta 16 @@@ ROGUE MODE // 2026.02.01 @ 13:10:45 Player: FrigidRock Result: Destroyed by B-99 Colossus with Linear Accelerator Performance ------------- Evolutions (9) 4500 Regions Visited (27) 5400 Robots Destroyed (576) 2880 Value Destroyed (31566) 31566 Prototype IDs (59) 1180 Alien Tech Used (0) 0 Bonus (10051) 10051 TOTAL SCORE: 55577 Bonus ------- Triggered High Security 500 High Alert Combat Kills 1869 Follower Combat Kills 2382 Entered Garrisons 1000 Used RIF Installer 3500 Aligned with FarCom 300 Destroyed MAIN.C Guards 500 Cogmind --------- Core Integrity 0/1600 Matter 275/300 Energy 88/100 System Corruption 85% Temperature Cool (0) Movement Hovering (60) Location -1/Command Parts ------- > --- POWER (4) -------- (None) > --- PROPULSION (6) --- Antigrav Array > --- UTILITY (11) ----- Experimental Optical Array Improved Targeting Computer Improved Targeting Computer Improved Targeting Computer Relay Coupler [Proto] (9) Relay Coupler [Proto] (5) > --- WEAPON (4) ------- (None) > --- INVENTORY (5) ---- Armored Medium Treads Gamma Rifle Peak State ------------ > --- POWER ------------ Compact Particle Reactor Compact Particle Reactor Quantum Reactor Light Quantum Reactor > --- PROPULSION ------- Myomer Leg Advanced Myomer Leg Biometal Leg Biometal Leg Biometal Leg Enhanced Biometal Leg > --- UTILITY ---------- Advanced Cryofiber Web Advanced Heat Sink High-capacity Storage Unit Experimental Optical Array Advanced Targeting Computer Weapon Mount Advanced Transmission Jammer Advanced Phase Shifter Centrium Light Armor Plating Experimental Thermal Shield Relay Coupler [Hunter] > --- WEAPON ----------- Enhanced Quantum Rifle KE Penetrator Enhanced Hardcell Cannon Enhanced Hardcell Cannon > --- INVENTORY -------- Enhanced Flexi-carbon Leg Enhanced Flexi-carbon Leg Antigrav Array Antigrav Array Antigrav Array Advanced Heat Sink Advanced Heat Sink High-capacity Matter Pod Weapon Mount Advanced Shield Generator System Shield Relay Coupler [NC] Relay Coupler [Proto] Relay Coupler [Proto] Relay Coupler [Proto] Precision Rocket Launcher Improved Remote Datajack [Rating: 197] Favorites ----------- Power Angular Momentum Engine Engine Angular Momentum Engine Power Core Neutrino Core Reactor Quantum Reactor Propulsion Biometal Leg Treads Light Treads Leg Biometal Leg Wheel Compact Wheel Hover Unit Gravmag System Flight Unit Electron Diverter Utility High-capacity Storage Unit Device Weapon Mount Storage High-capacity Storage Unit Processor Advanced Targeting Computer Hackware Relay Coupler [NC] Protection Centrium Light Armor Plating Weapon KE Penetrator Energy Gun Advanced Plasma Rifle Energy Cannon Phase Cannon Ballistic Gun KE Penetrator Ballistic Cannon Enhanced Hardcell Cannon Launcher Improved Grenade Launcher Special Weapon Advanced Remote Datajack Slashing Weapon Ionic Axe Special Melee Weapon Improved Datajack Build | -11 -10 -10 -10 -9 -8 -8 -8 -7 -7 -7 -7 -6 -6 -6 -6 -5 -5 -5 -5 -5 -5 -4 -4 -3 -2 -1 -1 ------- Run | Yrd Mat Min Exi Min Mat Gar Mat Fac Was Fac Gar Fac Was Fac Gar Fac Was Fac Gar Fac Gar Fac Arm Res Res Acc Com Slots Evolved 18 | . . . . . 4 . . 2 . . . 2 . . . 2 . . . . . 2 . 2 2 2 . Power 3 | . . . . . . . . . . . . 1 . . . . . . . . . 1 . . . 1 . Propulsion 4 | . . . . . 2 . . 1 . . . . . . . . . . . . . . . . 1 . . Utility 9 | . . . . . 1 . . 1 . . . 1 . . . 2 . . . . . 1 . 2 . 1 . Weapon 2 | . . . . . 1 . . . . . . . . . . . . . . . . . . . 1 . . Parts Attached 460 | 8 . 3 . . 19 37 1 7 . 16 24 18 . 24 13 35 1 19 24 14 11 16 34 27 27 30 52 Power 68 | 1 . 1 . . 3 5 . 2 . 1 1 2 . 3 1 5 . 3 4 3 . 4 6 5 5 5 8 Engine 27 | 1 . 1 . . 3 4 . 2 . 1 . 1 . 2 1 4 . 2 2 1 . 1 . . . . 1 Core 10 | . . . . . . 1 . . . . 1 1 . 1 . 1 . 1 . 1 . 2 . . . . 1 Reactor 31 | . . . . . . . . . . . . . . . . . . . 2 1 . 1 6 5 5 5 6 Propulsion 117 | 2 . . . . 8 11 . 2 . 7 6 3 . 9 1 11 1 5 6 2 1 4 4 10 4 6 14 Treads 17 | 2 . . . . . 6 . . . . 1 . . . 1 3 . . . . . 2 . . . . 2 Leg 55 | . . . . . . 4 . 2 . 3 3 1 . 1 . 7 1 . 4 2 1 . 4 9 4 6 3 Wheel 24 | . . . . . . . . . . 4 . 1 . 8 . 1 . 5 2 . . 2 . 1 . . . Hover 18 | . . . . . 8 1 . . . . 2 1 . . . . . . . . . . . . . . 6 Flight 3 | . . . . . . . . . . . . . . . . . . . . . . . . . . . 3 Utility 149 | 2 . 1 . . 4 6 1 3 . 5 7 10 . 6 3 15 . 5 7 5 8 4 6 7 11 13 20 Device 71 | 1 . . . . 1 3 . 1 . 3 4 3 . 4 2 6 . 3 4 2 . 3 5 3 7 6 10 Storage 10 | 1 . . . . 1 . 1 . . 1 . . . 1 . 1 . . . . . . . . 1 2 1 Processor 15 | . . . . . 1 . . . . . . . . . . 3 . 2 1 . . . . 2 1 2 3 Hackware 31 | . . . . . . . . . . . . 5 . 1 . 3 . . 2 3 7 1 1 . 2 2 4 Protection 22 | . . 1 . . 1 3 . 2 . 1 3 2 . . 1 2 . . . . 1 . . 2 . 1 2 Artifact . | . . . . . . . . . . . . . . . . . . . . . . . . . . . . Weapon 126 | 3 . 1 . . 4 15 . . . 3 10 3 . 6 8 4 . 6 7 4 2 4 18 5 7 6 10 Energy Gun 26 | . . 1 . . 2 6 . . . 2 . 2 . 1 2 1 . 1 . . . . 2 1 1 2 2 Energy Cannon 22 | . . . . . . 3 . . . . 4 . . 3 1 1 . . 1 . 1 . . 1 2 3 2 Ballistic Gun 42 | 3 . . . . . . . . . . 5 . . . 1 . . 4 6 3 . 4 11 2 2 . 1 Ballistic Cannon 23 | . . . . . 2 3 . . . 1 . . . 2 3 1 . 1 . . 1 . 2 1 2 1 3 Launcher 7 | . . . . . . 2 . . . . . 1 . . 1 . . . . . . . 2 . . . 1 Special Weapon 4 | . . . . . . . . . . . 1 . . . . 1 . . . . . . 1 . . . 1 Impact Weapon . | . . . . . . . . . . . . . . . . . . . . . . . . . . . . Slashing Weapon 1 | . . . . . . . . . . . . . . . . . . . . 1 . . . . . . . Piercing Weapon . | . . . . . . . . . . . . . . . . . . . . . . . . . . . . Special Melee Weapon 1 | . . . . . . 1 . . . . . . . . . . . . . . . . . . . . . Unidentified Prototypes 30 | . . . . . 1 . . . . 2 . 1 . 1 . . 1 2 . 2 1 . 1 10 2 2 4 Corrupted Parts 1 | . . . . . . . . . . . . . . . . . . . . . . . . . . . 1 System Corruption 5 | . . . . . . . . . . . . . . . . . . . . . . . . . . . 5 Parts Lost 141 | . . 1 . . 1 18 . 1 5 . 16 3 4 . 5 3 5 . 13 . 3 1 3 6 14 1 38 Power 21 | . . . . . . 2 . . 1 . 1 1 2 . 1 . 1 . 3 . . . . 1 1 . 7 Propulsion 32 | . . . . . . 6 . . 3 . 7 1 . . 2 1 1 . 4 . . . 1 . 1 . 5 Utility 42 | . . 1 . . . 4 . 1 . . 7 . . . 1 . 2 . 3 . . . . 4 5 1 13 Weapon 46 | . . . . . 1 6 . . 1 . 1 1 2 . 1 2 1 . 3 . 3 1 2 1 7 . 13 Highest Loss Streak 13 | . . 1 . . 1 10 . 1 4 . 6 2 2 . 2 1 5 . 3 . 1 1 2 3 7 1 13 To Critical Strikes 2 | . . . . . . . . . . . . . . . . . . . . . . . . 1 . . 1 Average Backups 15 | . 2 5 8 7 5 7 9 13 9 10 18 16 15 18 17 17 17 18 19 20 18 19 19 19 18 18 13 Power 1 | . . . . . 1 . . . 1 1 1 1 1 1 . 2 2 1 . . 1 1 2 1 1 . 1 Propulsion 1 | . . . 1 . 1 1 1 1 . 1 3 1 1 . 1 1 . 1 2 . . . 2 2 1 2 . Utility 7 | . . 1 3 2 . . 1 2 1 . 6 10 9 12 10 10 9 8 11 14 14 13 9 6 8 10 7 Weapon 3 | . 1 3 3 3 1 2 5 7 4 6 4 2 3 3 3 3 5 4 3 3 2 2 4 8 5 3 3 Tool/Special . | . . . . . . . . . . . . . . . . . . . . . . . . . . . . Unused Backups 67 | . . . 1 3 2 . . 1 8 . 3 2 . 8 2 3 . . 3 2 4 1 5 4 5 3 7 Power 8 | . . . . . . . . 1 . . . . . 1 . 1 . . . . . . 1 1 1 . 2 Propulsion 10 | . . . . 1 . . . . . . . . . . . . . . 1 1 . . 1 2 . 3 1 Utility 24 | . . . . 2 1 . . . 2 . . . . 4 . 2 . . 2 1 4 . 1 . 2 . 3 Weapon 21 | . . . 1 . 1 . . . 5 . 3 . . 3 1 . . . . . . 1 2 1 2 . 1 Tool/Special 4 | . . . . . . . . . 1 . . 2 . . 1 . . . . . . . . . . . . Average Slot Usage (%) 92 | . 100 99 100 80 91 91 100 95 45 69 90 82 75 90 87 97 81 76 97 98 99 88 95 98 95 99 83 Engine 4 | . 14 14 14 14 9 4 9 7 2 5 6 2 2 8 6 8 9 5 7 7 5 . . . . . . Core 1 | . . . . . . 4 . . . . . 7 4 2 6 1 . . . . . 9 . . . . . Reactor 4 | . . . . . . . . . . . . . . . . . . . 1 2 5 4 14 13 12 15 11 Treads 5 | . 28 28 28 28 . 23 . . . . . . . . . 3 . . . . . 9 3 . . . . Leg 14 | . . . . . . 2 36 35 17 14 27 9 6 6 . 20 24 13 11 29 29 . 9 21 25 24 16 Wheel 3 | . . . . . . . . . . 10 4 8 10 17 28 3 . 6 15 . . 4 8 1 . . . Hover 2 | . . . . . 35 4 . . . . . 5 6 1 . . . . . . . . . . . . . Device 15 | . 14 12 . . 5 8 . 10 9 12 12 15 6 13 18 17 14 15 17 16 14 12 19 30 17 24 19 Storage 5 | . 14 14 14 9 4 9 9 7 2 4 7 6 6 6 6 5 5 5 5 5 5 5 5 4 4 4 2 Processor 5 | . . . . . 4 . . . . . . . . . . 3 5 15 10 11 11 10 10 10 8 8 9 Hackware 2 | . . . . . . . . . . . . 1 13 12 6 6 3 . . 3 4 7 3 . . 3 4 Protection 4 | . . 1 14 9 5 7 18 9 2 5 6 5 2 . 1 5 3 . 3 . 2 5 2 . 7 4 3 Energy Gun 3 | . . 1 14 9 8 3 18 15 5 6 1 4 7 . 4 4 3 . . . . . . 2 2 5 1 Energy Cannon 3 | . . . . . . 10 . . . 5 7 2 . 11 1 2 . . 2 . 1 . . . 3 4 4 Ballistic Gun 5 | . 28 26 14 9 . . . . . . 10 1 . . . 4 3 8 9 14 7 6 14 9 4 2 . Ballistic Cannon 3 | . . . . . 17 7 9 7 2 2 . . . 1 3 2 3 1 1 . 5 6 . . 4 3 4 Peak Build Rating 197 | 7 7 7 8 8 38 41 42 56 55 52 55 63 55 60 81 106 101 75 100 100 107 129 133 158 182 197 195 Average Rating 91 | 3 7 6 7 6 34 31 41 51 22 39 49 56 45 52 53 97 80 65 82 94 101 124 125 150 164 186 157 On Entrance 62 | . 7 7 7 8 4 37 41 42 55 1 47 36 55 34 54 80 98 44 69 100 89 106 126 132 143 139 183 Avg Prop Armor Cover (%) 10 | . . . . 34 33 7 . . 22 18 8 10 11 8 13 11 . 9 4 . . 1 9 7 . . 16 Naked Turns 83 | . . . . . . . . . 21 62 . . . . . . . . . . . . . . . . . Heaviest Build 176 | 15 15 17 15 15 27 42 52 56 56 72 75 83 69 89 96 107 101 91 113 99 111 136 143 143 145 157 176 Greatest Support 178 | 40 40 40 40 40 36 80 62 84 84 58 96 40 40 74 74 141 114 71 113 113 113 140 140 148 178 176 174 Greatest Overweight (x) 12 | 1 . . . . . 9 . . . 2 2 2 1 3 1 2 . 2 5 . . 3 8 4 . . 12 Average Overweight (x) . | . . . . . . . . . . . . 1 1 1 . . . . . . . . 3 . . . . Largest Inventory Capacity 20 | 8 8 8 8 8 8 8 15 15 15 20 20 20 20 20 20 20 20 20 20 20 20 20 20 20 20 20 20 Average Capacity 16 | 6 8 8 8 6 6 8 12 15 8 15 20 20 20 20 20 20 20 20 20 20 20 20 20 20 20 20 14 Most Carried 20 | 1 4 8 8 8 8 8 11 15 15 20 20 19 15 20 20 20 19 20 20 20 20 20 20 20 20 20 20 Average Carried 15 | . 2 5 8 6 5 7 9 13 8 10 18 16 15 19 18 18 17 18 19 19 18 19 19 19 18 18 13 Final Capacity 20 | 8 8 8 8 5 8 8 15 15 5 20 20 20 20 20 20 20 20 20 20 20 20 20 20 20 20 20 5 Final Carried 20 | 1 4 8 8 5 8 8 11 15 5 20 19 15 15 20 18 18 17 20 20 20 19 19 20 19 17 19 2 Class Distribution -------------------- 19% | Botlord-Gunner 12% | Scavenger-Skirmisher 9% | Gunner 9% | Botlord-Tank 8% | Mutant 8% | Skirmisher 5% | Bothacker-Mutant 5% | Bothacker-Tank 5% | Scavenger-Gunner 4% | Bothacker-Skirmisher 3% | Bothacker-Gunner Dominant Class ---------------- Mutant | -10/Materials Mutant | -10/Mines Mutant | -10/Exiles Mutant | -9/Mines Skirmisher | -8/Materials Scavenger-Skirmisher | -8/Garrison Scavenger-Tank | -8/Materials Skirmisher | -7/Factory Mutant | -7/Waste Skirmisher | -7/Factory Bothacker-Skirmisher | -7/Garrison Bothacker-Mutant | -6/Factory Bothacker-Mutant | -6/Waste Bothacker-Skirmisher | -6/Factory Bothacker-Mutant | -6/Garrison Gunner | -5/Factory Gunner | -5/Waste Mutant | -5/Factory Scavenger-Gunner | -5/Garrison Botlord-Gunner | -5/Factory Botlord-Gunner | -5/Garrison Botlord-Tank | -4/Factory Scavenger-Gunner | -4/Armory Gunner | -3/Research Bothacker-Gunner | -2/Research Botlord-Gunner | -1/Access Botlord-Tank | -1/Command Resources | -11 -10 -10 -10 -9 -8 -8 -8 -7 -7 -7 -7 -6 -6 -6 -6 -5 -5 -5 -5 -5 -5 -4 -4 -3 -2 -1 -1 ----------- Run | Yrd Mat Min Exi Min Mat Gar Mat Fac Was Fac Gar Fac Was Fac Gar Fac Was Fac Gar Fac Gar Fac Arm Res Res Acc Com Matter Collected 23245 | 207 84 151 . 28 734 1624 284 102 . 154 1245 511 . 586 889 1318 . 596 1161 626 1836 1269 1918 1369 1499 2039 3015 Remotely . | . . . . . . . . . . . . . . . . . . . . . . . . . . . . Salvage Created 27857 | 73 84 182 . . 578 1442 101 97 . 161 1337 329 . 728 1132 1344 . 596 1985 1070 1244 1037 3041 3240 2430 2142 3484 Parts 1312 | 4 4 14 . . 37 83 8 2 . 13 79 15 . 28 49 61 . 22 94 55 46 50 169 128 103 117 131 Haulers Intercepted 3 | . . . . . 1 . . . . . . . . . . . . . . . . . . 2 . . . Recyclers Shooed 18 | . . . . 2 1 . . . . . . 2 . 3 . 1 . . . . . . . 1 5 1 2 Parts Field Recycled . | . . . . . . . . . . . . . . . . . . . . . . . . . . . . Retrieved Matter . | . . . . . . . . . . . . . . . . . . . . . . . . . . . . Parts Self-Destructed . | . . . . . . . . . . . . . . . . . . . . . . . . . . . . Prevented . | . . . . . . . . . . . . . . . . . . . . . . . . . . . . Parts Restored . | . . . . . . . . . . . . . . . . . . . . . . . . . . . . Kills | -11 -10 -10 -10 -9 -8 -8 -8 -7 -7 -7 -7 -6 -6 -6 -6 -5 -5 -5 -5 -5 -5 -4 -4 -3 -2 -1 -1 ------- Run | Yrd Mat Min Exi Min Mat Gar Mat Fac Was Fac Gar Fac Was Fac Gar Fac Was Fac Gar Fac Gar Fac Arm Res Res Acc Com Combat Hostiles Destroyed 459 | . 4 2 . . 13 46 4 2 . 1 36 3 . 7 24 18 . 3 38 15 26 19 43 36 22 44 53 Guns 212 | . 4 2 . . 2 5 3 2 . . 16 3 . . 1 5 . 3 34 15 16 9 39 26 11 15 1 Cannons 167 | . . . . . 11 28 1 . . 1 12 . . 7 8 5 . . 4 . 10 10 . 1 11 18 40 AOE 68 | . . . . . . 13 . . . . 8 . . . 8 7 . . . . . . 4 9 . 9 10 Classes Destroyed 23 | 2 2 2 . . 5 4 . . . . 2 . . . 1 1 . . 2 . 1 . . 1 . . . Worker 27 | . . 1 . . . . . . . 1 . 1 . 1 . 1 . 1 . . . 3 . 8 4 . 6 Builder 8 | . . . . . 1 . . . . . . . . . . . . 1 . . . 1 . 3 . 2 . Tunneler 8 | 1 . 2 . . . . . . . 2 . . . 1 . 1 . . . 1 . . . . . . . Hauler 3 | . . . . . 1 . . . . . . . . . . . . . . . . . . 2 . . . Recycler 30 | 1 . . . . 2 . . . . 1 . 1 . 3 . 2 . 3 . . . . . 4 5 1 7 Mechanic 3 | . . . . . . 1 . . . . . . . . . . . . . 1 . . . . 1 . . Operator 6 | . . . . . 1 . . . . . . . . . . 1 . . . . . . 2 . . 1 1 Watcher 28 | . . . . . 4 . 1 . . 1 . . . 1 . 4 . . . 2 . 1 4 3 4 2 1 Swarmer 104 | . 3 . . . 3 11 3 . . . 10 . . 3 4 7 . . 8 . 6 . 5 5 5 19 12 Cutter 6 | . . . . . . . . . . . . . . . 3 . . . 3 . . . . . . . . Saboteur 5 | . . . . . . . . . . . 2 . . . . . . . . . . . 1 2 . . . Grunt 122 | . 1 . . . 5 18 . . . . 11 1 . 3 10 1 . . 15 8 13 6 11 10 4 1 4 Brawler 3 | . . . . . . . . . . . . . . . . 1 . . . 2 . . . . . . . Duelist 9 | . . . . . 1 . . . . . . . . 1 . . . . 6 1 . . . . . . . Protector 3 | . . . . . . . . . . . . . . . . . . . 1 1 . . . 1 . . . Sentry 55 | . . 2 . . 4 11 1 2 . 1 5 . . . 3 3 . 1 2 . 2 . 5 2 3 3 5 Demolisher 2 | . . . . . . . . . . . . . . . . . . . 1 . . . 1 . . . . Specialist 15 | . . . . . . 2 . . . . 1 . . . . . . . . . . 4 4 2 2 . . Hunter 25 | . . . . . . 4 . . . . 3 . . . . 1 . . 1 . 1 . 2 1 2 2 8 Programmer 104 | . . . . . . . . . . . 4 2 . 1 4 5 . 2 1 2 2 9 14 11 6 19 22 Behemoth 2 | . . . . . . 1 . . . . . . . . . . . . . . 1 . . . . . . Combat Programmer 2 | . . . . . . . . . . . . . . . . . . . . . . . . . . . 2 Striker 3 | . . . . . . . . . . . . . . . . . . . . . 2 . . 1 . . . Executioner 1 | . . . . . . . . . . . . . . . . . . . . . . . . 1 . . . Guerrilla 2 | . . . . . . 1 . . . . . . . . . . . . . 1 . . . . . . . Best Kill Streak 20 | 2 3 2 . . 3 6 3 1 . 2 9 2 . 4 5 7 . 2 7 5 4 9 6 20 7 8 6 Combat Bots Only 12 | . 3 2 . . 3 6 3 1 . 1 9 1 . 4 5 5 . 2 7 5 4 8 6 12 5 8 6 Max Kills in Single Turn 5 | 1 2 1 . . 2 3 1 1 . 2 3 1 . 1 3 2 . 1 2 2 2 5 4 3 3 4 2 Gunslinging 1 | . 1 . . . . . . . . . . . . . . . . . 1 . . . . . . . . Exploded 4 | . . . . . . 3 . . . . 3 . . . 3 2 . . . . . . 4 3 . 4 2 Melee . | . . . . . . . . . . . . . . . . . . . . . . . . . . . . Uniques/NPCs Destroyed . | . . . . . . . . . . . . . . . . . . . . . . . . . . . . Combat | -11 -10 -10 -10 -9 -8 -8 -8 -7 -7 -7 -7 -6 -6 -6 -6 -5 -5 -5 -5 -5 -5 -4 -4 -3 -2 -1 -1 -------- Run | Yrd Mat Min Exi Min Mat Gar Mat Fac Was Fac Gar Fac Was Fac Gar Fac Was Fac Gar Fac Gar Fac Arm Res Res Acc Com Hostile Shots Fired 2673 | . 3 30 . 3 41 159 54 45 9 42 445 82 3 42 86 83 4 27 112 34 73 168 244 94 147 161 482 Missed 858 | . 2 6 . . 14 48 22 21 1 19 154 49 . 8 21 24 . 6 27 14 16 56 50 31 36 77 156 Hits 1815 | . 1 24 . 3 27 111 32 24 8 23 291 33 3 34 65 59 4 21 85 20 57 112 194 63 111 84 326 Melee 37 | . . . . . . . . . 8 . 1 . 3 . 6 . 4 . 9 . . . 1 1 . . 4 Projectile 1778 | . 1 24 . 3 27 111 32 24 . 23 290 33 . 34 59 59 . 21 76 20 57 112 193 62 111 84 322 AOE 21 | . . . . 3 . . . 2 . . . . . . 1 . . . 7 1 . . 4 . . 2 1 Critical Strikes 111 | . . 2 . . . 5 . . 7 . 4 . 2 1 4 1 1 1 5 . 4 9 10 5 4 6 40 Actively Blocked 2 | . . . . . . . . . . . . . . . 1 . . . . . . . . . . . 1 Part Disruptions 6 | . . . . . . . . . . . . . . . . . . . . . . . 3 . . . 3 Damage Taken 33712 | . 11 354 . 106 395 2746 442 346 372 169 3088 395 137 590 1037 1180 200 323 1980 518 1290 1090 2155 1279 3316 1577 8616 Core 3767 | . . 84 . 28 18 457 21 48 218 33 284 6 . 64 70 100 52 19 147 . 92 41 76 79 220 93 1517 Absorbed by Shields 4771 | . . . . . . 4 . . . . . . . . 11 20 . 36 16 . . 1091 1795 386 13 422 977 Redirected to Shielding 501 | . . . . . . 138 4 8 . . . . . . 103 . . . 6 . . . . . 141 . 101 Ignored by Resistances 86 | . . . . . . . . . . . . 4 . . . . . . . . . . . . . 9 73 Regen/Repaired (Parts) 174 | . . . . . . . . . . . . . . . . . . . . . . . . . . 174 . Core Remaining (%) 65 | 100 . . . 55 . . 9 . . . 16 . . . 83 . . . . . 59 . 89 93 84 . . Volleys Fired 1415 | 4 3 16 . . 42 153 29 4 . 10 98 20 . 36 69 69 . 26 85 49 104 51 106 86 83 110 162 Largest 4 | 2 2 2 . . 3 3 3 3 . 3 3 3 . 3 3 3 . 3 3 3 3 3 3 3 4 4 4 Hottest 422 | 40 40 40 . . 129 255 194 194 . 240 240 194 . 230 202 242 . 96 177 90 177 142 120 222 298 422 392 Shots Fired 3236 | 8 6 32 . . 122 275 53 12 . 24 263 44 . 92 113 148 . 62 210 124 187 119 266 201 202 307 366 Gun 1740 | 8 6 32 . . 38 84 27 8 . 10 157 27 . . 27 95 . 61 173 111 79 45 255 181 101 171 44 Cannon 1226 | . . . . . 84 130 26 4 . 14 85 11 . 85 46 35 . 1 34 1 81 63 2 10 99 122 293 Launcher 176 | . . . . . . 61 . . . . 21 3 . . 40 10 . . . . . . 2 9 . 4 26 Special 94 | . . . . . . . . . . . . 3 . 7 . 8 . . 3 12 27 11 7 1 2 10 3 Kinetic 1936 | 8 6 32 . . 84 70 26 4 . 4 135 8 . 21 37 61 . 49 172 112 143 108 254 161 138 136 167 Thermal 830 | . . . . . 38 131 27 8 . 20 107 16 . 64 36 60 . . 27 . 17 . . 24 40 112 103 Explosive 123 | . . . . . . 61 . . . . 21 . . . . . . . . . . . 2 9 . 4 26 Electromagnetic 253 | . . . . . . 13 . . . . . 17 . . 40 19 . 13 8 . . . 3 6 22 45 67 Robot Hit Streak 58 | 5 4 11 . . 10 17 2 11 . 14 23 7 . 14 9 28 . 15 24 22 31 31 37 58 20 42 27 Robot Miss Streak 23 | 2 1 1 . . 23 4 4 . . 9 8 9 . 5 2 3 . 1 2 2 2 4 4 3 3 3 3 Penetration Max 4 | . . . . . . . . . . . 1 . . 1 . 1 . 1 1 1 1 1 3 4 3 1 1 Secondary Targets 34 | . 1 . . . . . . . . . . . . . . 1 . 1 8 2 2 . 6 8 2 3 . Max Gunslinging Chain 1 | . 1 . . . . . . . . . . . . . . 1 . 1 1 1 1 . 1 1 1 1 . Shots Hit Robots 2139 | 6 4 25 . . 80 141 12 9 . 15 152 28 . 51 39 95 . 49 158 97 136 80 196 149 142 215 260 Core Hits 1163 | 4 4 7 . 1 73 113 5 3 . 12 108 12 . 19 42 50 . 20 77 36 47 37 102 105 75 87 124 Critical Kills 91 | . . . . . . . . . . . 4 . . . . 2 . . 4 6 . 2 37 23 10 2 1 Critical Parts Destroyed 94 | . . . . . . . . . . . 13 . . . . 6 . 1 5 1 5 2 28 18 13 2 . Critical Strikes 243 | . . . . . 1 2 . 2 . . 22 . . 1 1 13 . 1 11 7 9 5 69 44 29 10 16 Burn 11 | . . . . . 1 2 . 2 . . . . . . 1 . . . . . . . . 1 1 3 . Meltdown 1 | . . . . . . . . . . . . . . . . . . . . . . . . . . . 1 Destroy 200 | . . . . . . . . . . . 22 . . . . 9 . 1 11 7 7 4 69 43 23 4 . Blast 29 | . . . . . . . . . . . . . . 1 . 4 . . . . 2 1 . . 5 3 13 Corrupt 2 | . . . . . . . . . . . . . . . . . . . . . . . . . . . 2 Melee Attacks 28 | . . . . . . 16 . . . . . 8 . 4 . . . . . . . . . . . . . Impact . | . . . . . . . . . . . . . . . . . . . . . . . . . . . . Slashing . | . . . . . . . . . . . . . . . . . . . . . . . . . . . . Piercing . | . . . . . . . . . . . . . . . . . . . . . . . . . . . . Sneak Attacks 19 | . . . . . . 16 . . . . . 3 . . . . . . . . . . . . . . . Combat Hostiles . | . . . . . . . . . . . . . . . . . . . . . . . . . . . . Follow-up Attacks . | . . . . . . . . . . . . . . . . . . . . . . . . . . . . Damage Inflicted 70218 | 82 47 356 . 9 1464 4572 305 211 . 364 3313 489 . 1401 2988 3104 . 1127 4444 2226 3856 2967 3232 6929 4581 8398 13753 Guns 29521 | 74 47 356 . . 331 673 153 157 . 169 1263 281 . . 485 1440 . 1090 3609 2154 1922 1070 2893 4520 2003 3660 1171 Cannons 27762 | . . . . . 1133 2172 152 54 . 195 1334 90 . 1401 816 904 . . 835 48 1934 1434 . 301 2515 3522 8922 Explosions 12321 | . . . . . . 1727 . . . . 716 118 . . 1687 760 . 37 . . . 441 339 2083 . 1216 3197 Melee . | . . . . . . . . . . . . . . . . . . . . . . . . . . . . Ramming 614 | 8 . . . 9 . . . . . . . . . . . . . . . 24 . 22 . 25 63 . 463 Kinetic 37294 | 74 47 356 . . 1133 1352 152 54 . 74 784 29 . 369 690 751 . 951 3714 2202 3398 2504 2893 3938 2960 3587 5282 Thermal 17008 | . . . . . 331 1446 153 157 . 290 1813 173 . 1032 676 1878 . 37 664 . 458 . . 648 912 3171 3169 Explosive 9676 | . . . . . . 1682 . . . . 716 77 . . . . . . . . . 441 339 2083 . 1141 3197 Electromagnetic 5626 | . . . . . . 92 . . . . . 210 . . 1622 475 . 139 66 . . . . 235 646 499 1642 Impact . | . . . . . . . . . . . . . . . . . . . . . . . . . . . . Slashing . | . . . . . . . . . . . . . . . . . . . . . . . . . . . . Piercing . | . . . . . . . . . . . . . . . . . . . . . . . . . . . . Highest Corruption 85 | . 2 2 2 2 1 6 6 . . 2 7 . . 4 9 6 2 2 5 5 1 9 27 2 10 13 85 Average Corruption 8 | . 2 2 2 2 1 2 6 . . 2 3 . . 4 6 2 2 2 3 3 1 4 23 1 5 9 35 Corruption Purged 10 | . . . . . . . . . . . . . . . . 5 . . . 5 . . . . . . . Corruption Blocked . | . . . . . . . . . . . . . . . . . . . . . . . . . . . . Effects 703 | . 3 8 8 . 4 63 15 . . 3 38 . . 23 27 17 1 9 29 3 11 16 111 4 39 94 177 Message Errors 177 | . . 3 1 . 2 14 2 . . 3 8 . . 7 8 4 1 2 7 1 3 5 29 2 11 29 35 Matter Fused 130 | . 1 2 4 . . 9 3 . . . 8 . . 6 5 6 . 5 4 1 . 4 15 1 8 19 29 Heat Flow Errors 86 | . . . 1 . . 8 4 . . . 6 . . 2 1 1 . . 4 . 2 1 14 . 6 14 22 Energy Discharges 101 | . 1 2 1 . . 14 3 . . . 4 . . 2 7 2 . 2 5 . 3 3 19 1 4 17 11 Parts Rejected 10 | . . . . . 1 . . . . . 1 . . . . . . . 1 . . . 2 . 1 . 4 Parts Fused 10 | . . 1 . . . . . . . . . . . . . . . . 1 . . . 1 . 1 1 5 Data Loss (minor) 71 | . 1 . 1 . 1 9 1 . . . 4 . . 4 4 4 . . 2 . 2 1 12 . 2 7 16 Data Loss (major) 21 | . . . . . . 3 1 . . . 3 . . 1 1 . . . 2 . 1 1 2 . 1 1 4 Misfires 30 | . . . . . . 5 1 . . . 4 . . 1 . . . . 1 1 . 1 1 . 1 3 11 Alerts 12 | . . . . . . 1 . . . . . . . . 1 . . . . . . . 1 . 3 1 5 Misdirections 25 | . . . . . . . . . . . . . . . . . . . . . . . 1 . . . 24 Weapon Failures 30 | . . . . . . . . . . . . . . . . . . . 2 . . . 14 . 1 2 11 Overload Shots . | . . . . . . . . . . . . . . . . . . . . . . . . . . . . Overflow Damage 2020 | . . . . . . 220 27 . . 10 23 . . 57 104 265 . 7 . . 11 134 . 148 38 298 678 Projectiles 871 | . . . . . . . 27 . . 10 13 . . 57 43 74 . . . . 11 60 . . 38 150 388 Explosions 957 | . . . . . . 220 . . . . 10 . . . 61 191 . 7 . . . 74 . 148 . 148 98 Melee 192 | . . . . . . . . . . . . . . . . . . . . . . . . . . . 192 Knockbacks 148 | . . . . . 38 18 3 . . . . . . 4 2 4 . . 2 1 7 10 . 1 12 13 33 Impact 5 | . . . . . . . . . . . . . . . . . . . . 1 . . . . . . 4 Kinetic 138 | . . . . . 37 18 3 . . . . . . 4 2 4 . . 2 . 6 10 . 1 10 12 29 Secondary 5 | . . . . . 1 . . . . . . . . . . . . . . . 1 . . . 2 1 . Self-Inflicted Damage 600 | . . . . 4 . 266 . . . . 182 . . . 13 76 . 19 . . . . . . . . 40 Shots 27 | . . . . . . 14 . . . . 6 . . . 1 2 . 1 . . . . . . . . 3 Rammed 12 | 8 . . . 2 . . . . . . . . . . . . . . . . . 1 . . . . 1 Targets Rammed 27 | 8 . . . 2 . . . . . . . . . . . . . . . 2 . 1 . 2 1 . 11 Kicked 15 | . . . . . . . . . . . . . . . . . . . . 2 . . . 2 1 . 10 Crushed . | . . . . . . . . . . . . . . . . . . . . . . . . . . . . Highest Temperature 559 | . . 22 114 . 329 360 559 176 . 194 199 198 . 537 265 228 . 118 462 32 416 215 251 246 395 280 470 Average Temperature 101 | . . 10 58 . 111 98 164 81 . 83 76 57 . 151 75 94 . 43 118 9 132 49 70 51 140 94 120 Received Heat Transfer 4454 | . 6 144 . . 162 669 162 42 . 42 597 105 . 216 123 108 . 21 469 51 571 192 213 131 96 27 307 Effects 47 | . . . . . 7 4 7 . . . . . . 11 . . . . 2 . 8 . . . 5 . 3 Shutdowns 12 | . . . . . . 1 1 . . . . . . 3 . . . . 1 . 4 . . . 2 . . Energy Bleed 10 | . . . . . 2 2 1 . . . . . . 1 . . . . 1 . 2 . . . 1 . . Interference 14 | . . . . . 5 1 3 . . . . . . . . . . . . . 2 . . . 2 . 1 Matter Decay 2 | . . . . . . . 1 . . . . . . 1 . . . . . . . . . . . . . Short Circuit 1 | . . . . . . . . . . . . . . 1 . . . . . . . . . . . . . Damage (minor) 3 | . . . . . . . 1 . . . . . . 1 . . . . . . . . . . . . 1 Damage (major) 5 | . . . . . . . . . . . . . . 4 . . . . . . . . . . . . 1 Siege Activations . | . . . . . . . . . . . . . . . . . . . . . . . . . . . . Martial Activations . | . . . . . . . . . . . . . . . . . . . . . . . . . . . . Shielding Activations . | . . . . . . . . . . . . . . . . . . . . . . . . . . . . Robots Disrupted 4 | . . . . . . . . . . . . . . . . 1 . 1 . . . . . 1 . 1 . Combat Hostiles 2 | . . . . . . . . . . . . . . . . . . . . . . . . 1 . 1 . Robots Corrupted 11 | . . . . . . . . . . . . . . . 7 . . . . . . . . . . 1 3 Combat Hostiles 9 | . . . . . . . . . . . . . . . 7 . . . . . . . . . . 1 1 Parts Fried 36 | . . . . . . . . . . . . 1 . . 7 5 . . . . . . . . 2 3 18 Impact Corruptions 6 | . . . . . . . . . . . . . . . . . . . . . . . . . . 1 5 Robots Melted 3 | . . . . . . . . . . . . . . . . 1 . . . . . . . . . 1 1 Combat Hostiles 3 | . . . . . . . . . . . . . . . . 1 . . . . . . . . . 1 1 Parts Melted 45 | . . . . . . 2 . . . . 9 1 . 3 . 5 . . . . . . . 4 1 16 4 Heat Transferred 22315 | . . . . . 703 2414 350 550 . 458 2391 259 . 1358 953 2069 . 50 684 . 481 . . 1200 1279 3996 3120 Parts Sabotaged 3 | . . . . . . . . . . . 2 . . . . . . . . . . . 1 . . . . Parts Stolen . | . . . . . . . . . . . . . . . . . . . . . . . . . . . . Parts Stripped . | . . . . . . . . . . . . . . . . . . . . . . . . . . . . Power Chain Reactions 4 | . . . . . . 1 . . . . . . . . 1 1 . 1 . . . . . . . . . Alert | -11 -10 -10 -10 -9 -8 -8 -8 -7 -7 -7 -7 -6 -6 -6 -6 -5 -5 -5 -5 -5 -5 -4 -4 -3 -2 -1 -1 ------- Run | Yrd Mat Min Exi Min Mat Gar Mat Fac Was Fac Gar Fac Was Fac Gar Fac Was Fac Gar Fac Gar Fac Arm Res Res Acc Com Maximum Alert Level 5 | . . . . . . 5 5 4 1 . 3 2 . . 2 1 . . 2 2 4 2 . 1 . . 1 Low Security (%) 54 | 100 100 100 . 100 100 1 . . . 100 3 . 100 100 12 88 100 100 26 1 8 1 100 88 100 100 95 Level 1 12 | . . . . . . 4 . . 100 . 36 39 . . 14 11 . . 39 65 13 48 . 11 . . 4 Level 2 11 | . . . . . . 4 . . . . 28 60 . . 72 . . . 33 32 24 49 . . . . . Level 3 7 | . . . . . . 17 . 94 . . 30 . . . . . . . . . 46 . . . . . . Level 4 2 | . . . . . . 14 . 5 . . . . . . . . . . . . 7 . . . . . . Level 5 9 | . . . . . . 58 52 . . . . . . . . . . . . . . . . . . . . High Security . | . . . . . . . 47 . . . . . . . . . . . . . . . . . . . . Max Security . | . . . . . . . . . . . . . . . . . . . . . . . . . . . . Peak Influence 4002 | 5 70 32 . 20 193 4002 1955 1100 343 170 988 518 116 130 591 304 . 27 564 529 1106 591 183 228 143 193 228 Initial 1950 | . . 1 . . 7 15 1950 1100 343 170 . 518 116 25 56 304 . . . 296 163 580 112 85 110 . 73 Average 540 | . 21 2 . 2 47 2066 1904 1046 291 76 534 410 80 33 425 93 . 3 318 347 706 376 99 65 57 120 116 Influence Increases 14712 | 10 95 55 . 30 521 4227 144 62 . 74 1148 234 . 288 615 426 . 69 694 594 1123 545 712 593 520 777 1156 Destroy 0b10 Robot/C 6375 | . 80 40 . . 260 920 80 40 . 20 720 90 . 150 375 210 . 30 390 190 460 280 450 360 220 440 570 Destroy 0b10 Robot/NC 451 | 10 . 15 . . 45 15 5 . . 25 . 16 . 20 . 30 . 15 6 36 . 24 21 63 42 18 45 Destroy Leader 878 | . 10 . . . 80 20 22 20 . 12 40 26 . 16 21 54 . 10 20 39 25 56 100 60 59 77 111 Allied During Kill 508 | . . . . . . 10 . . . . . 16 . 9 13 12 . . 34 28 238 102 33 1 . . 12 Successful Hack 192 | . 5 . . . 16 37 5 . . 12 . 9 . 4 11 25 . . 19 21 7 . . . 21 . . Select Force Hacks 30 | . . . . . 30 . . . . . . . . . . . . . . . . . . . . . . Disable Machine 526 | . . . . . 15 15 . . . . . 36 . 36 . 24 . 8 8 216 40 24 56 . . 32 16 Anti-Garrison Action 3388 | . . . . . . 2600 . . . . 250 . . . 38 . . . 150 . 250 . . . 100 . . Destroy Structure 1734 | . . . . . . 535 17 2 . 5 123 29 . 17 73 39 . 6 19 56 95 43 44 77 54 162 338 Partial Spotted 45 | . . . . . 30 15 . . . . . . . . . . . . . . . . . . . . . Lose Combat Pursuer 585 | . . . . 30 45 60 15 . . . 15 12 . 36 84 32 . . 48 8 8 16 8 32 24 48 64 Influence Decreases 14852 | 10 90 58 2 10 517 249 2192 1245 739 317 160 888 298 243 115 1007 . 69 130 924 251 1420 780 559 717 661 1201 Entered New Map 6050 | . . 4 2 . 13 9 2052 1065 639 73 . 470 218 11 25 277 . . . 268 71 526 119 78 87 . 43 Time Decay 6170 | 10 90 54 . 10 314 . 140 170 50 244 . 368 40 224 . 608 . 69 . 486 . 494 571 410 499 621 698 Lost Part 1332 | . . . . . 5 180 . 10 50 . 160 30 40 . 50 26 . . 130 . 30 10 30 60 131 10 380 Lost Ally 811 | . . . . . . 60 . . . . . 20 . 4 40 96 . . . 20 150 240 60 11 . 30 80 Purge Threat 489 | . . . . . 185 . . . . . . . . 4 . . . . . 150 . 150 . . . . . Squads Dispatched 77 | . 1 . . . 4 . 8 . . . . 3 . 3 . 4 . 2 . 4 . 11 9 7 6 6 9 Investigation 9 | . . . . . 2 . . . . . . . . 1 . 1 . . . . . . 2 . 2 . 1 Extermination 34 | . . . . . . . . . . . . 2 . 1 . 3 . 1 . 2 . 2 5 2 2 6 8 Reinforcement 18 | . 1 . . . . . . . . . . 1 . 1 . . . . . . . 8 2 3 2 . . Assault 13 | . . . . . . . 8 . . . . . . . . . . . . 2 . 1 . 2 . . . Garrison 3 | . . . . . 2 . . . . . . . . . . . . 1 . . . . . . . . . Intercept . | . . . . . . . . . . . . . . . . . . . . . . . . . . . . Searches Triggered . | . . . . . . . . . . . . . . . . . . . . . . . . . . . . Unchained Authorized 1 | . . . . . . . . . . . . . . . . . . . . . . . . 1 . . . Construction Impeded 2 | . . . . . . . . . . . . . . . . . . . . . . 1 . 1 . . . Haulers Reinforced 2 | . . . . . . . . . . . . 1 . . . . . . . . . . . 1 . . . Active Scanning Responses . | . . . . . . . . . . . . . . . . . . . . . . . . . . . . Cargo Convoy Interrupts 1 | . . . . . . . . . . . . . . . . . . . . . . . . 1 . . . Stealth | -11 -10 -10 -10 -9 -8 -8 -8 -7 -7 -7 -7 -6 -6 -6 -6 -5 -5 -5 -5 -5 -5 -4 -4 -3 -2 -1 -1 --------- Run | Yrd Mat Min Exi Min Mat Gar Mat Fac Was Fac Gar Fac Was Fac Gar Fac Was Fac Gar Fac Gar Fac Arm Res Res Acc Com Distress Signals 14 | . . . . . 2 . 1 . . . . . . 1 . . . . . . . 3 . . 1 5 1 Communications Jammed 68 | . . . . . . . . . . . . . . . . . . . . . . . . 38 29 1 . Distress Signals 68 | . . . . . . . . . . . . . . . . . . . . . . . . 38 29 1 . Times Spotted 673 | . 6 2 . 2 28 42 16 3 6 5 35 14 6 17 27 26 6 6 40 31 44 33 57 53 34 55 79 Peak Tracking Total 9 | . 2 2 . 2 4 6 9 1 6 2 4 4 6 5 6 5 6 2 6 4 5 6 5 9 4 7 8 Tactical Retreats 37 | . . . . 1 2 2 1 . . . 1 1 . 1 4 2 . . 2 1 1 2 1 1 3 5 6 Traps | -11 -10 -10 -10 -9 -8 -8 -8 -7 -7 -7 -7 -6 -6 -6 -6 -5 -5 -5 -5 -5 -5 -4 -4 -3 -2 -1 -1 ------- Run | Yrd Mat Min Exi Min Mat Gar Mat Fac Was Fac Gar Fac Was Fac Gar Fac Was Fac Gar Fac Gar Fac Arm Res Res Acc Com Traps Triggered 63 | . 1 . . . 1 10 . 1 . 1 5 2 . 4 8 3 . . 15 . 6 . 2 . 2 . 2 Indirectly 2 | . . . . . . . . . . . . . . . 2 . . . . . . . . . . . . Trap Hack Attempts 3 | . . . . . . . . . . . 3 . . . . . . . . . . . . . . . . Triggered . | . . . . . . . . . . . . . . . . . . . . . . . . . . . . Disarmed 1 | . . . . . . . . . . . 1 . . . . . . . . . . . . . . . . Reprogrammed . | . . . . . . . . . . . . . . . . . . . . . . . . . . . . Reused . | . . . . . . . . . . . . . . . . . . . . . . . . . . . . Traps Extracted . | . . . . . . . . . . . . . . . . . . . . . . . . . . . . Installed . | . . . . . . . . . . . . . . . . . . . . . . . . . . . . Triggered . | . . . . . . . . . . . . . . . . . . . . . . . . . . . . Machines | -11 -10 -10 -10 -9 -8 -8 -8 -7 -7 -7 -7 -6 -6 -6 -6 -5 -5 -5 -5 -5 -5 -4 -4 -3 -2 -1 -1 ---------- Run | Yrd Mat Min Exi Min Mat Gar Mat Fac Was Fac Gar Fac Was Fac Gar Fac Was Fac Gar Fac Gar Fac Arm Res Res Acc Com Machines Disabled 89 | . . . . . 1 9 . . . . 4 3 . 3 1 3 . 1 5 27 13 6 7 . . 4 2 Max in Single Turn 2 | . . . . . 1 2 . . . . 1 1 . 1 1 2 . 1 1 1 1 1 2 . . 1 1 Garrison Access 4 | . . . . . . . . . . . . . . . . . . . . . . . . 1 2 1 . Garrison Relay 16 | . . . . . . 1 . . . . 3 . . . 2 . . . 4 . 6 . . . . . . Phase Generator 1 | . . . . . . 1 . . . . . . . . . . . . . . . . . . . . . Energy Cycler 1 | . . . . . . . . . . . . . . . . . . . . . . . . . . 1 . Machines Repaired . | . . . . . . . . . . . . . . . . . . . . . . . . . . . . Machines Dismantled . | . . . . . . . . . . . . . . . . . . . . . . . . . . . . Machines Sabotaged . | . . . . . . . . . . . . . . . . . . . . . . . . . . . . Overloaded Fab Kills . | . . . . . . . . . . . . . . . . . . . . . . . . . . . . Hacking | -11 -10 -10 -10 -9 -8 -8 -8 -7 -7 -7 -7 -6 -6 -6 -6 -5 -5 -5 -5 -5 -5 -4 -4 -3 -2 -1 -1 --------- Run | Yrd Mat Min Exi Min Mat Gar Mat Fac Was Fac Gar Fac Was Fac Gar Fac Was Fac Gar Fac Gar Fac Arm Res Res Acc Com Machines Accessed 89 | . 2 . 2 . 10 4 2 1 . 2 2 3 . 6 1 4 . 4 4 11 3 3 3 2 11 4 5 Terminals 63 | . 2 . . . 6 4 2 . . . 2 2 . 5 1 1 . 2 4 7 3 3 3 1 7 3 5 Fabricators 5 | . . . . . . . . . . . . 1 . . . 1 . 1 . 1 . . . . 1 . . Repair Stations . | . . . . . . . . . . . . . . . . . . . . . . . . . . . . Recycling Units 1 | . . . . . 1 . . . . . . . . . . . . . . . . . . . . . . Scanalyzers 10 | . . . . . 2 . . 1 . 1 . . . . . 2 . . . 2 . . . 1 1 . . Garrison Access 8 | . . . . . 1 . . . . 1 . . . 1 . . . 1 . 1 . . . . 2 1 . Total Hacks 187 | . 6 . 5 . 35 7 6 1 . 3 3 5 . 12 1 14 . 8 5 30 4 4 4 3 20 4 7 Successful 81 | . 2 . 5 . 25 3 3 . . 2 . 1 . 3 1 7 . 2 3 12 1 1 . 1 8 1 . Failed 105 | . 4 . . . 9 4 3 1 . 1 3 4 . 9 . 7 . 6 2 18 3 3 4 2 12 3 7 Catastrophic 27 | . . . . . . 1 . . . . 1 2 . 2 . . . 1 1 5 1 1 1 . 5 3 3 Database Lockouts 1 | . . . . . 1 . . . . . . . . . . . . . . . . . . . . . . Manual 66 | . 6 . 1 . 18 . 2 . . . . 3 . 9 . 3 . 3 . 7 . 2 . . 7 2 3 Terminals 125 | . 6 . . . 22 7 6 . . . 3 2 . 10 1 4 . 6 5 14 4 4 4 2 15 3 7 Fabricators 10 | . . . . . . . . . . . . 3 . . . 2 . 1 . 3 . . . . 1 . . Repair Stations . | . . . . . . . . . . . . . . . . . . . . . . . . . . . . Recycling Units 2 | . . . . . 2 . . . . . . . . . . . . . . . . . . . . . . Scanalyzers 34 | . . . . . 10 . . 1 . 2 . . . . . 8 . . . 10 . . . 1 2 . . Garrison Access 11 | . . . . . 1 . . . . 1 . . . 2 . . . 1 . 3 . . . . 2 1 . Terminal Hacks 29 | . 1 . 5 . 5 3 3 . . . . . . 1 1 . . . 3 2 1 1 . 1 2 . . Record 4 | . . . 4 . . . . . . . . . . . . . . . . . . . . . . . . Prototype ID Bank 1 | . . . . . . . 1 . . . . . . . . . . . . . . . . . . . . Open Door 2 | . . . . . . 1 . . . . . . . . . . . . 1 . . . . . . . . Open DSF 1 | . . . . . . . . . . . . . . . . . . . . . . . . 1 . . . Level Access Points 1 | . . . . . . . 1 . . . . . . . . . . . . . . . . . . . . Branch Access Points 2 | . . . . . 1 . . . . . . . . . . . . . . . . . . . 1 . . Emergency Access Points 5 | . . . . . 1 1 . . . . . . . . 1 . . . . . 1 . . . 1 . . Alert Level 1 | . . . . . . . 1 . . . . . . . . . . . . . . . . . . . . Unreport Threat 4 | . . . . . 2 . . . . . . . . 1 . . . . . 1 . . . . . . . Recall Investigation 2 | . . . . . 1 . . . . . . . . . . . . . . 1 . . . . . . . Registered Components 1 | . 1 . . . . . . . . . . . . . . . . . . . . . . . . . . Zone Layout 1 | . . . . . . . . . . . . . . . . . . . . . . 1 . . . . . Patrol Navigation 1 | . . . . . . . . . . . . . . . . . . . 1 . . . . . . . . Security Stations 2 | . . . . . . 1 . . . . . . . . . . . . 1 . . . . . . . . Proto ID Catalog 1 | . . . 1 . . . . . . . . . . . . . . . . . . . . . . . . Fabricator Hacks 2 | . . . . . . . . . . . . . . . . . . . . 1 . . . . 1 . . Build 2 | . . . . . . . . . . . . . . . . . . . . 1 . . . . 1 . . Repair Station Hacks . | . . . . . . . . . . . . . . . . . . . . . . . . . . . . Recycling Unit Hacks . | . . . . . . . . . . . . . . . . . . . . . . . . . . . . Scanalyzer 22 | . . . . . 9 . . . . 1 . . . . . 5 . . . 6 . . . . 1 . . Insert Component 3 | . . . . . 2 . . . . . . . . . . . . . . 1 . . . . . . . Analyze 3 | . . . . . 2 . . . . . . . . . . . . . . 1 . . . . . . . Retrieve Study 16 | . . . . . 5 . . . . 1 . . . . . 5 . . . 4 . . . . 1 . . Garrison Access Hacks 7 | . . . . . 1 . . . . 1 . . . 1 . . . 1 . 1 . . . . 1 1 . Unlock Access 5 | . . . . . 1 . . . . 1 . . . 1 . . . 1 . 1 . . . . . . . Seal Access 2 | . . . . . . . . . . . . . . . . . . . . . . . . . 1 1 . Unauthorized Hacks 21 | . 1 . . . 10 . . . . . . 1 . 1 . 2 . 1 . 2 . . . . 3 . . Terminals 17 | . 1 . . . 9 . . . . . . . . 1 . 1 . 1 . 2 . . . . 2 . . Botnet 12 | . 1 . . . 4 . . . . . . . . 1 . 1 . 1 . 2 . . . . 2 . . Skim 5 | . . . . . 5 . . . . . . . . . . . . . . . . . . . . . . Fabricators 2 | . . . . . . . . . . . . 1 . . . 1 . . . . . . . . . . . Liberate 2 | . . . . . . . . . . . . 1 . . . 1 . . . . . . . . . . . Repair Stations . | . . . . . . . . . . . . . . . . . . . . . . . . . . . . Recycling Units 1 | . . . . . 1 . . . . . . . . . . . . . . . . . . . . . . Tunnel 1 | . . . . . 1 . . . . . . . . . . . . . . . . . . . . . . Scanalyzers . | . . . . . . . . . . . . . . . . . . . . . . . . . . . . Garrison Access 1 | . . . . . . . . . . . . . . . . . . . . . . . . . 1 . . Jam 1 | . . . . . . . . . . . . . . . . . . . . . . . . . 1 . . Data Cores Recovered 3 | . . . . . 1 . . . . . . . . . . 1 . . . 1 . . . . . . . Used 2 | . . . . . 1 . . . . . . . . . . . . . . 1 . . . . . . . Hacking Detections 74 | . 2 . . . 9 3 1 1 . 1 2 3 . 5 . 4 . 4 2 11 3 3 3 2 8 3 4 Full Trace Events 4 | . . . . . 1 1 . . . . . . . . . . . . . . . . . . 1 . 1 Feedback Events 2 | . . . . . 1 . . . . . . . . . . . . . . . . . . . 1 . . Corruption 2 | . . . . . 1 . . . . . . . . . . . . . . . . . . . 1 . . Feedback Blocked . | . . . . . . . . . . . . . . . . . . . . . . . . . . . . Robot Schematics Acquired . | . . . . . . . . . . . . . . . . . . . . . . . . . . . . Robots Built . | . . . . . . . . . . . . . . . . . . . . . . . . . . . . Authchips . | . . . . . . . . . . . . . . . . . . . . . . . . . . . . Time . | . . . . . . . . . . . . . . . . . . . . . . . . . . . . Total Robot Build Rating . | . . . . . . . . . . . . . . . . . . . . . . . . . . . . Part Schematics Acquired 3 | . . . . . 2 . . . . . . . . . . . . . . 1 . . . . . . . Parts Built 2 | . . . . . . . . . . . . . . . . . . . . . . . . . 2 . . Authchips . | . . . . . . . . . . . . . . . . . . . . . . . . . . . . Time 192 | . . . . . . . . . . . . . . . . . . . . 53 . . . . 139 . . Total Part Build Rating 18 | . . . . . . . . . . . . . . . . . . . . . . . . . 18 . . Part Studies Acquired 15 | . . . . . 4 . . . . 1 . . . . . 5 . . . 4 . . . . 1 . . Parts Repaired . | . . . . . . . . . . . . . . . . . . . . . . . . . . . . Time . | . . . . . . . . . . . . . . . . . . . . . . . . . . . . Parts Recycled . | . . . . . . . . . . . . . . . . . . . . . . . . . . . . Recycled Matter . | . . . . . . . . . . . . . . . . . . . . . . . . . . . . Retrieved Matter . | . . . . . . . . . . . . . . . . . . . . . . . . . . . . Retrieved Components . | . . . . . . . . . . . . . . . . . . . . . . . . . . . . Parts Scanalyzed 3 | . . . . . 2 . . . . . . . . . . . . . . 1 . . . . . . . Part Schematics Acquired 3 | . . . . . 2 . . . . . . . . . . . . . . 1 . . . . . . . Parts Damaged . | . . . . . . . . . . . . . . . . . . . . . . . . . . . . Bothacking | -11 -10 -10 -10 -9 -8 -8 -8 -7 -7 -7 -7 -6 -6 -6 -6 -5 -5 -5 -5 -5 -5 -4 -4 -3 -2 -1 -1 ------------ Run | Yrd Mat Min Exi Min Mat Gar Mat Fac Was Fac Gar Fac Was Fac Gar Fac Was Fac Gar Fac Gar Fac Arm Res Res Acc Com Used RIF Installer 7 | . . . . . . 1 . . . . 2 . . . 2 . . . 1 . 1 . . . . . . Hotswap 1 | . . . . . . . . . . . . . . . . . . . . . 1 . . . . . . Threat Obfuscator 3 | . . . . . . . . . . . 1 . . . 2 . . . . . . . . . . . . Zone Cloak 1 | . . . . . . . . . . . 1 . . . . . . . . . . . . . . . . Autooverride 1 | . . . . . . . . . . . . . . . . . . . 1 . . . . . . . . Robots Hacked 66 | . . . . . . 1 . . . . . 7 . 6 . 5 . . 3 5 13 9 5 . 1 6 5 Non-combat 18 | . . . . . . 1 . . . . . 3 . 3 . . . . . 2 . 3 . . . 5 1 Combat 48 | . . . . . . . . . . . . 4 . 3 . 5 . . 3 3 13 6 5 . 1 1 4 Autooverrided 5 | . . . . . . . . . . . . . . . . . . . . . 1 1 . . . . 3 Robot Hacks Applied 67 | . . . . . . 1 . . . . . 8 . 6 . 5 . . 3 6 13 9 5 . 1 8 2 parse_system 5 | . . . . . . 1 . . . . . . . . . . . . . 1 1 1 . . . 1 . no_distress 3 | . . . . . . . . . . . . 2 . . . . . . . . . . . . . 1 . map_walls 4 | . . . . . . . . . . . . 1 . 1 . . . . . . . 1 . . . 1 . purge_threat 1 | . . . . . . . . . . . . . . . . . . . . . . 1 . . . . . link_fov 1 | . . . . . . . . . . . . . . . . . . . . . . . . . . 1 . scatter_targeting 1 | . . . . . . . . . . . . . . . . . . . . . 1 . . . . . . overload_power 2 | . . . . . . . . . . . . . . 1 . . . . . . 1 . . . . . . overwrite_iff 12 | . . . . . . . . . . . . . . 1 . 1 . . . . 4 4 . . 1 1 . streamctrl_high 2 | . . . . . . . . . . . . . . . . . . . . . . . 1 . . . 1 formatsys_low 4 | . . . . . . . . . . . . . . . . . . . . 2 . . . . . 2 . formatsys_high 32 | . . . . . . . . . . . . 5 . 3 . 4 . . 3 3 6 2 4 . . 1 1 Relay Couplers Released 71 | . . . . . . 3 . . . . 11 . . . 10 . . . 15 4 22 . . 1 3 2 . Machine Destruction 67 | . . . . . . 3 . . . . 11 . . . 10 . . . 15 . 22 . . 1 3 2 . Programmers 4 | . . . . . . . . . . . . . . . . . . . . 4 . . . . . . . Attached 29 | . . . . . . . . . . . . 5 . 1 . 3 . . 2 3 7 1 1 . 2 2 2 Fabnet Peak Effective % . | . . . . . . . . . . . . . . . . . . . . . . . . . . . . Robots Rewired 13 | . . . . . . 7 . . . . . . . . . . . . . . 5 . . 1 . . . Allies Hacked 4 | . . . . . . . . . . . . 1 . . . . . . . . . 3 . . . . . Hacks Repelled . | . . . . . . . . . . . . . . . . . . . . . . . . . . . . Allies | -11 -10 -10 -10 -9 -8 -8 -8 -7 -7 -7 -7 -6 -6 -6 -6 -5 -5 -5 -5 -5 -5 -4 -4 -3 -2 -1 -1 -------- Run | Yrd Mat Min Exi Min Mat Gar Mat Fac Was Fac Gar Fac Was Fac Gar Fac Was Fac Gar Fac Gar Fac Arm Res Res Acc Com Total Allies 70 | . . 1 . . . 7 . . . . . 4 . 4 2 5 . . 4 5 16 6 5 1 1 4 5 Largest Group 10 | . . 1 . . . 4 . . . . . 3 1 3 2 3 . . 4 4 10 9 2 1 1 1 2 Highest-Rated Group 635 | . . 31 . . . 104 . . . . . 105 29 71 142 99 . . 185 185 635 519 112 47 69 69 271 Highest-Rated Ally 215 | . . 31 . . . 39 . . . . . 47 29 29 80 41 . . 51 49 148 148 56 47 69 69 215 Total Orders 7 | . . . . . . . . . . . . . . . . . . . . . 6 . . . . 1 . STAY 3 | . . . . . . . . . . . . . . . . . . . . . 3 . . . . . . FOLLOW 3 | . . . . . . . . . . . . . . . . . . . . . 3 . . . . . . AID 1 | . . . . . . . . . . . . . . . . . . . . . . . . . . 1 . Ally Attacks 367 | . . . . . . 9 . . . . . 33 18 16 10 22 . . 19 16 100 61 39 2 3 4 15 Total Damage 13443 | . . . . . . 74 . . . . . 920 210 232 524 534 . . 283 2175 3569 1936 1209 43 72 176 1486 Kills 72 | . . . . . . . . . . . . 5 . 3 4 4 . . 2 13 20 13 3 1 . . 4 Allies Corrupted 4 | . . . . . . . . . . . . . . . . 1 . . . . . 1 . . . . 2 Allies Melted . | . . . . . . . . . . . . . . . . . . . . . . . . . . . . Intel | -11 -10 -10 -10 -9 -8 -8 -8 -7 -7 -7 -7 -6 -6 -6 -6 -5 -5 -5 -5 -5 -5 -4 -4 -3 -2 -1 -1 ------- Run | Yrd Mat Min Exi Min Mat Gar Mat Fac Was Fac Gar Fac Was Fac Gar Fac Was Fac Gar Fac Gar Fac Arm Res Res Acc Com Active Infowar (turns) 10417 | 16 272 767 . . . . . . . 426 19 . . . . 1 . . . . . . . 1481 1557 2924 2954 Optics 7523 | . . . . . . . . . . . . . . . . 1 . . . . . . . 104 1540 2924 2954 Structural 1586 | . . . . . . . . . . . . . . . . . . . . . . . . . . 1494 92 Seismic 1055 | 16 272 767 . . . . . . . . . . . . . . . . . . . . . . . . . Cloaking 1726 | . . . . . . . . . . . . . . . . . . . . . . . . 947 779 . . Jamming 3363 | . . . . . . . . . . 426 19 . . . . . . . . . . . . 534 1557 827 . ECM 3 | . . . . . . . . . . . . . . . . . . . . . . . . . . . 3 Robot Analysis Total . | . . . . . . . . . . . . . . . . . . . . . . . . . . . . Derelict Logs Recovered 2 | . . 1 . 1 . . . . . . . . . . . . . . . . . . . . . . . Drone Launches . | . . . . . . . . . . . . . . . . . . . . . . . . . . . . Drone Recoveries . | . . . . . . . . . . . . . . . . . . . . . . . . . . . . Exploration | -11 -10 -10 -10 -9 -8 -8 -8 -7 -7 -7 -7 -6 -6 -6 -6 -5 -5 -5 -5 -5 -5 -4 -4 -3 -2 -1 -1 ------------- Run | Yrd Mat Min Exi Min Mat Gar Mat Fac Was Fac Gar Fac Was Fac Gar Fac Was Fac Gar Fac Gar Fac Arm Res Res Acc Com Turns Passed 34667 | 130 272 883 439 114 1108 5388 538 347 116 563 1730 843 92 1151 1000 2142 131 639 1359 1275 2045 1301 2143 1483 1557 2924 2954 Spaces Moved 21950 | 74 159 509 274 124 1168 3512 354 257 149 546 1035 597 87 806 646 1354 110 401 900 728 1409 590 851 862 935 1262 2251 Core 466 | 35 . . . 82 35 1 . . 93 218 . . . . . . . . . . . . . . . . 2 Treads 4475 | 39 159 509 274 42 . 2490 . . . . . . . . . 108 . . . . . 570 225 . . . 59 Legs 9726 | . . . . . . 332 354 257 56 . 747 . . . . 977 110 308 266 728 1409 18 . 748 935 1262 1219 Wheels 4490 | . . . . . . . . . . 328 288 597 87 806 646 269 . 93 634 . . 2 626 114 . . . Hover 2020 | . . . . . 1133 689 . . . . . . . . . . . . . . . . . . . . 198 Flight 773 | . . . . . . . . . . . . . . . . . . . . . . . . . . . 773 Fastest Speed 48 | 50 160 160 160 50 48 48 105 105 50 50 97 105 105 105 96 114 112 105 105 106 106 106 150 112 108 109 50 Average Speed 116 | 124 160 160 160 87 48 133 105 109 70 86 121 116 105 111 112 121 114 124 112 106 106 177 180 121 111 110 94 Slowest Speed 650 | 160 160 160 160 160 100 500 105 112 112 150 200 120 105 135 115 250 115 171 175 109 106 180 270 260 113 111 650 Overloaded Moves . | . . . . . . . . . . . . . . . . . . . . . . . . . . . . Propulsion Burnouts . | . . . . . . . . . . . . . . . . . . . . . . . . . . . . Robots Hopped 6 | . . . . . . . . . . . . . . . . . . . . . . . . . . . 6 Potential Cave-ins 1 | . . . . . . . . . . . . . . . . . . . . . 1 . . . . . . Cave-ins Triggered 1 | . . . . . . 1 . . . . . . . . . . . . . . . . . . . . . Exploration Rate (%) 44 | 4 42 86 62 41 62 99 27 6 80 15 75 15 76 13 71 30 74 13 86 26 80 11 43 21 24 30 40 Regions Visited 27 Branch Regions 5 Pre-discovered Areas 3 | . . . 1 . 2 . . . . . . . . . . . . . . . . . . . . . . Known Exits Taken 7 | . . . . . 1 . 1 . . 1 . . . 1 . . . 1 . 1 . . . 1 . . . Unknown Exits Taken 9 | 1 1 1 1 1 . . . . . . . . . . . . . . . . . 1 1 . 1 1 . Scrap Searched 3 | . . 2 . 1 . . . . . . . . . . . . . . . . . . . . . . . Spaces Dug 512 | . . . . . . 372 14 . . . 52 1 . . . . . 1 1 . 6 5 4 22 7 13 14 Terrain Destroyed 1644 | . . . . . . 814 21 1 . 5 157 29 . 14 6 42 . 2 10 13 13 34 40 111 27 98 207 Melee . | . . . . . . . . . . . . . . . . . . . . . . . . . . . . Projectile 294 | . . . . . . . 21 1 . 5 1 2 . 14 . 19 . 1 10 12 13 26 8 56 26 35 44 AOE 1330 | . . . . . . 814 . . . . 149 27 . . 6 23 . 1 . . . 8 22 54 . 63 163 Terrain Rammed . | . . . . . . . . . . . . . . . . . . . . . . . . . . . . Walls Destroyed . | . . . . . . . . . . . . . . . . . . . . . . . . . . . . Machines Disabled . | . . . . . . . . . . . . . . . . . . . . . . . . . . . . Actions | -11 -10 -10 -10 -9 -8 -8 -8 -7 -7 -7 -7 -6 -6 -6 -6 -5 -5 -5 -5 -5 -5 -4 -4 -3 -2 -1 -1 --------- Run | Yrd Mat Min Exi Min Mat Gar Mat Fac Was Fac Gar Fac Was Fac Gar Fac Was Fac Gar Fac Gar Fac Arm Res Res Acc Com Total 28705 | 95 171 546 275 132 1621 3981 476 314 159 609 1303 703 87 993 831 1769 116 500 1132 1169 1832 756 1273 1180 1299 2586 2797 Wait 3595 | 1 7 13 . . 363 153 89 35 10 18 66 42 1 49 16 230 1 32 16 347 221 66 208 148 191 1096 176 Move 21913 | 73 158 508 273 123 1167 3510 353 257 148 545 1033 597 86 805 645 1354 109 401 899 727 1407 589 850 862 934 1261 2239 Hop 6 | . . . . . . . . . . . . . . . . . . . . . . . . . . . 6 Pick Up 235 | 1 3 4 1 . 10 6 3 5 . 13 15 2 . 17 7 13 . 4 15 5 19 6 21 5 16 19 25 Fast Attach 323 | 7 . 2 . . 12 28 . 4 . 14 14 12 . 17 9 20 1 13 21 10 2 11 20 22 20 16 48 Attach 182 | . . 1 . . 4 10 . 1 . 3 13 4 . 3 14 19 2 9 12 2 15 3 11 5 13 11 27 Detach 97 | . . 1 . . . 6 . . . 5 10 . . 1 14 9 1 7 6 1 3 3 4 7 2 2 15 Swap 270 | 1 . . . . 7 23 1 3 . 1 12 11 . 16 2 23 . 3 8 9 26 12 19 19 15 38 21 Drop 404 | . . 1 1 7 16 19 1 5 1 . 18 4 . 27 15 31 2 5 23 17 16 14 34 25 24 33 65 Fire 1415 | 4 3 16 . . 42 153 29 4 . 10 98 20 . 36 69 69 . 26 85 49 104 51 106 86 83 110 162 Melee 28 | . . . . . . 16 . . . . . 8 . 4 . . . . . . . . . . . . . Ram 3 | . . . . 2 . . . . . . . . . . . . . . . . . . . . . . 1 Kick 14 | . . . . . . . . . . . . . . . . . . . . 2 . . . 1 1 . 10 Crush 10 | 8 . . . . . . . . . . . . . . . . . . . . . 1 . . . . 1 Escape Stasis 194 | . . . . . . 51 . . . . 21 . . 16 40 . . . 46 . 19 . . . . . 1 Rewire 13 | . . . . . . 6 . . . . . 3 . 2 . 1 . . 1 . . . . . . . . Trap 3 | . . . . . . . . . . . 3 . . . . . . . . . . . . . . . . Miscellaneous . | . . . . . . . . . . . . . . . . . . . . . . . . . . . . Route ------- -11/Scrapyard -10/Materials (discovered 3 exits: [*Mat] / [*Min x2]) -10/Mines (discovered 2 exits: [*Mat] / *Exi) -10/Exiles (discovered 2 exits: [*Min x2]) -9/Mines -8/Materials (discovered 4 exits: *Fac x3 / Gar) -8/Garrison (discovered 4 exits: *Mat x4) -8/Materials (discovered 3 exits: *Fac x3) -7/Factory (discovered 2 exits: *Sto / [*Low]) -7/Waste -7/Factory -7/Garrison (discovered 3 exits: *Fac x3) -6/Factory -6/Waste -6/Factory -6/Garrison (discovered 2 exits: *Fac x2) -5/Factory (discovered 2 exits: *Fac x2) -5/Waste -5/Factory -5/Garrison (discovered 2 exits: *Fac x2) -5/Factory (discovered 4 exits: *Fac x2 / [*Upp] / Gar) -5/Garrison (discovered 3 exits: *Fac x3) -4/Factory -4/Armory -3/Research -2/Research (discovered 4 exits: *Acc x2 / *Tes x2) -1/Access -1/Command (discovered 1 exit: [*Sur]) History --------- Turn | Location | Event 14 | -11/Scrapyard | Discovered new exit (range 15) 131 | -11/Scrapyard | Entered Materials 131 | -10/Materials | Discovered new exit (range 12) 235 | -10/Materials | Discovered new exit (range 16) 307 | -10/Materials | Build established: Mutant 382 | -10/Materials | Discovered new exit (range 14) 403 | -10/Materials | Entered Mines 820 | -10/Mines | Discovered new exit (range 14) 830 | -10/Mines | Received a Mining Laser from a helpful Derelict 853 | -10/Mines | Learned 2 Materials zone layouts 1278 | -10/Mines | Deemed a non-threat by the Exiles lab entrance 1280 | -10/Mines | Discovered new exit (range 5) 1286 | -10/Mines | Entered Exiles 1307 | -10/Exiles | Discovered new exit (range 15) 1326 | -10/Exiles | Met 8R-AWN 1352 | -10/Exiles | Met EX-HEX 1398 | -10/Exiles | Met EX-BIN 1418 | -10/Exiles | Met EX-DEC 1432 | -10/Exiles | Learned location of Zion (-7) 1514 | -10/Exiles | Aligned with FarCom system 1515 | -10/Exiles | Given EX-Vault access code 1552 | -10/Exiles | Opened EX-Vault 1565 | -10/Exiles | Found Field Lobotomy Kit 1597 | -10/Exiles | Warned to stay clear of 0b10 Research branches 1712 | -10/Exiles | Discovered new exit (range 10) 1725 | -10/Exiles | Left Exiles lab with Field Lobotomy Kit 1725 | -10/Exiles | Entered Mines 1726 | -9/Mines | Assembled infested the area 1738 | -9/Mines | Learned Materials emergency access door positions 1743 | -9/Mines | Met a Derelict bent on vengeance 1834 | -9/Mines | Discovered new exit (range 9) 1839 | -9/Mines | Entered Materials 1839 | -8/Materials | Evolved 4 slots: Propulsion x2, Utility x1, Weapon x1 1878 | -8/Materials | Garrison activated, responded to threat 2084 | -8/Materials | Garrison activated, responded to threat 2211 | -8/Materials | Build established: Skirmisher 2504 | -8/Materials | Central database locked down 2552 | -8/Materials | Discovered new exit (range 15) 2568 | -8/Materials | Learned location of 1 exit from Storage 2613 | -8/Materials | Learned Storage terminal intel 2649 | -8/Materials | Identified exit to Factory 2691 | -8/Materials | Learned Storage terminal intel 2699 | -8/Materials | Learned location of 2 exits from Lower Caves 2700 | -8/Materials | Learned 2 Storage zone layouts 2707 | -8/Materials | Learned 4 Lower Caves zone layouts 2722 | -8/Materials | Learned location of 1 exit from Recycling 2749 | -8/Materials | Learned location of 1 exit from Lower Caves 2913 | -8/Materials | Identified exit to Garrison 2947 | -8/Materials | Entered Garrison 2957 | -8/Garrison | Triggered checkpoint 3117 | -8/Garrison | Triggered checkpoint 3204 | -8/Garrison | Discovered new exit (range 15) 3219 | -8/Garrison | Triggered checkpoint 3274 | -8/Garrison | Phase Generator disabled 3344 | -8/Garrison | Triggered checkpoint 3388 | -8/Garrison | Discovered new exit (range 10) 3441 | -8/Garrison | Learned Materials security intel 3451 | -8/Garrison | Spotted B-75 Beast 3654 | -8/Garrison | Destroyed B-75 Beast 3674 | -8/Garrison | Lost 10 parts (1p3n3u3w) 3723 | -8/Garrison | Core integrity fell below 50% 3847 | -8/Garrison | Triggered checkpoint 3883 | -8/Garrison | Discovered new exit (range 3) 3987 | -8/Garrison | Triggered checkpoint 4023 | -8/Garrison | Lost 3 allies 4227 | -8/Garrison | Discovered new exit (range 14) 4439 | -8/Garrison | Build established: Scavenger-Skirmisher 4655 | -8/Garrison | Triggered checkpoint 4747 | -8/Garrison | Triggered checkpoint 4899 | -8/Garrison | Triggered checkpoint 5704 | -8/Garrison | Garrison Relay disabled 7174 | -8/Garrison | Crushed by falling debris 7174 | -8/Garrison | Core integrity fell below 20% 7837 | -8/Garrison | Installed Relay Interface Framework 8335 | -8/Garrison | Entered Materials 8414 | -8/Materials | Build established: Scavenger-Tank 8616 | -8/Materials | High security lockdown imminent 8696 | -8/Materials | High security lockdown engaged 8873 | -8/Materials | Entered Factory 8873 | -7/Factory | Evolved 2 slots: Propulsion x1, Utility x1 8874 | -7/Factory | Identified exit to Storage 9217 | -7/Factory | Discovered new exit (range 11) 9220 | -7/Factory | Sucked down chute 9220 | -7/Factory | Entered Waste 9227 | -7/Waste | Spotted C-40 Crusher 9228 | -7/Waste | Spotted C-40 Crusher 9244 | -7/Waste | Spotted C-40 Crusher 9252 | -7/Waste | Crushed by Compactor (1 part destroyed, 2 dropped) 9255 | -7/Waste | Spotted C-40 Crusher 9255 | -7/Waste | Spotted C-40 Crusher 9256 | -7/Waste | Spotted C-40 Crusher 9262 | -7/Waste | Crushed by Compactor (1 part destroyed, 1 dropped) 9265 | -7/Waste | Crushed by Compactor (1 part destroyed, 2 dropped) 9268 | -7/Waste | Crushed by Compactor (1 part destroyed, 1 dropped) 9285 | -7/Waste | Discovered new exit (range 16) 9299 | -7/Waste | Lost 4 parts (1p2n1w) 9315 | -7/Waste | Crushed by Compactor (1 part destroyed, 1 dropped) 9336 | -7/Waste | Entered Factory 9888 | -7/Factory | Identified exit to Garrison 9899 | -7/Factory | Entered Garrison 9923 | -7/Garrison | Triggered checkpoint 9965 | -7/Garrison | Core integrity fell below 50% 9998 | -7/Garrison | Destroyed 9 combat bots 10127 | -7/Garrison | Triggered checkpoint 10242 | -7/Garrison | Lost 5 parts (2n3u) 10283 | -7/Garrison | Garrison Relay disabled 10447 | -7/Garrison | Triggered checkpoint 10547 | -7/Garrison | Triggered checkpoint 10556 | -7/Garrison | Triggered checkpoint 10601 | -7/Garrison | Build established: Skirmisher 10703 | -7/Garrison | Garrison Relay disabled 10985 | -7/Garrison | Discovered new exit (range 10) 11113 | -7/Garrison | Discovered new exit (range 15) 11150 | -7/Garrison | Build established: Bothacker-Skirmisher 11157 | -7/Garrison | Triggered checkpoint 11399 | -7/Garrison | Triggered checkpoint 11494 | -7/Garrison | Core integrity fell below 20% 11534 | -7/Garrison | Expanded RIF knowledge: Threat Obfuscation 11541 | -7/Garrison | Lost 6 parts (1p2n2u1w) 11584 | -7/Garrison | Discovered new exit (range 10) 11608 | -7/Garrison | Expanded RIF knowledge: Zone Cloak 11629 | -7/Garrison | Entered Factory 11629 | -6/Factory | Evolved 2 slots: Power x1, Utility x1 11790 | -6/Factory | Build established: Bothacker-Mutant 12285 | -6/Factory | Build established: Bothacker-Tank 12383 | -6/Factory | P-60 Hacker assimilated allied Soldier 5a 12472 | -6/Factory | Sucked down chute 12472 | -6/Factory | Entered Waste 12486 | -6/Waste | Spotted C-40 Crusher 12488 | -6/Waste | Spotted C-40 Crusher 12500 | -6/Waste | Spotted C-40 Crusher 12504 | -6/Waste | Crushed by Compactor (1 part destroyed, 1 dropped) 12504 | -6/Waste | Spotted C-40 Crusher 12517 | -6/Waste | 2 allies followed down the chute 12528 | -6/Waste | Crushed by Compactor (0 parts destroyed, 1 dropped) 12539 | -6/Waste | Spotted C-40 Crusher 12540 | -6/Waste | Spotted C-40 Crusher 12547 | -6/Waste | Crushed by Compactor (1 part destroyed) 12548 | -6/Waste | Discovered new exit (range 16) 12564 | -6/Waste | Entered Factory 12611 | -6/Factory | Identified exit to Garrison 12656 | -6/Factory | Build established: Bothacker-Mutant 13514 | -6/Factory | Build established: Bothacker-Skirmisher 13715 | -6/Factory | Entered Garrison 13755 | -6/Garrison | Triggered checkpoint 13787 | -6/Garrison | Garrison Relay disabled 13923 | -6/Garrison | Triggered checkpoint 13971 | -6/Garrison | Triggered checkpoint 14117 | -6/Garrison | Triggered checkpoint 14147 | -6/Garrison | Discovered new exit (range 11) 14206 | -6/Garrison | Garrison Relay disabled 14235 | -6/Garrison | Expanded RIF knowledge: Threat Obfuscation 14282 | -6/Garrison | Found embedded Infiltrators 14339 | -6/Garrison | Expanded RIF knowledge: Threat Obfuscation 14440 | -6/Garrison | Triggered checkpoint 14498 | -6/Garrison | Build established: Bothacker-Mutant 14522 | -6/Garrison | Discovered new exit (range 11) 14715 | -6/Garrison | Entered Factory 14715 | -5/Factory | Evolved 2 slots: Utility x2 14974 | -5/Factory | Build established: Bothacker-Tank 15171 | -5/Factory | Discovered new exit (range 6) 15641 | -5/Factory | Discovered new exit (range 8) 15700 | -5/Factory | Build established: Gunner 16857 | -5/Factory | Sucked down chute 16857 | -5/Factory | Entered Waste 16892 | -5/Waste | Spotted C-40 Crusher 16895 | -5/Waste | Spotted C-40 Crusher 16924 | -5/Waste | Spotted C-40 Crusher 16925 | -5/Waste | Spotted C-40 Crusher 16925 | -5/Waste | Spotted C-40 Crusher 16938 | -5/Waste | Crushed by Compactor (1 part destroyed, 1 dropped) 16939 | -5/Waste | Crushed by Compactor (1 part destroyed, 2 dropped) 16942 | -5/Waste | Crushed by Compactor (1 part destroyed, 1 dropped) 16952 | -5/Waste | Spotted C-40 Crusher 16959 | -5/Waste | Crushed by Compactor (1 part destroyed, 1 dropped) 16978 | -5/Waste | Discovered new exit (range 10) 16988 | -5/Waste | Entered Factory 16990 | -5/Factory | Lost 5 parts (1p1n2u1w) 17227 | -5/Factory | Build established: Mutant 17469 | -5/Factory | Garrison activated, responded to threat 17616 | -5/Factory | Spotted B-75 Beast 17627 | -5/Factory | Identified exit to Garrison 17627 | -5/Factory | Entered Garrison 17764 | -5/Garrison | Triggered checkpoint 17764 | -5/Garrison | Triggered checkpoint 17827 | -5/Garrison | Lost 3 parts (1p1n1w) 17832 | -5/Garrison | Destroyed 7 combat bots 17893 | -5/Garrison | Learned Factory security intel 17965 | -5/Garrison | Lost 3 parts (2n1u) 17980 | -5/Garrison | Rescued a captive Derelict 17989 | -5/Garrison | Garrison Relay disabled 18025 | -5/Garrison | Triggered checkpoint 18031 | -5/Garrison | Triggered checkpoint 18121 | -5/Garrison | Triggered checkpoint 18130 | -5/Garrison | Build established: Scavenger-Gunner 18145 | -5/Garrison | Triggered checkpoint 18171 | -5/Garrison | Destroyed 7 combat bots 18183 | -5/Garrison | Triggered checkpoint 18232 | -5/Garrison | Found Relay Coupler [Proto] 18234 | -5/Garrison | Found Relay Coupler [Proto] 18239 | -5/Garrison | Found Relay Coupler [Proto] 18241 | -5/Garrison | Found Relay Coupler [Proto] 18313 | -5/Garrison | Triggered checkpoint 18344 | -5/Garrison | Garrison Relay disabled 18477 | -5/Garrison | Triggered checkpoint 18559 | -5/Garrison | Expanded RIF knowledge: Autooverride 18659 | -5/Garrison | Garrison Relay disabled 18698 | -5/Garrison | Discovered new exit (range 13) 18759 | -5/Garrison | Discovered new exit (range 15) 18833 | -5/Garrison | Triggered checkpoint 18852 | -5/Garrison | Garrison Relay disabled 18918 | -5/Garrison | Build established: Botlord-Gunner 18986 | -5/Garrison | Entered Factory 18986 | -5/Factory | Accompanied by 4 allies 19286 | -5/Factory | First assault squad dispatched 19333 | -5/Factory | Discovered new exit (range 4) 19528 | -5/Factory | Discovered new exit (range 15) 19557 | -5/Factory | P-70 Sage assimilated allied YQ-JEM(h) 19964 | -5/Factory | Discovered new exit (range 9) 20024 | -5/Factory | Identified exit to Garrison 20261 | -5/Factory | Entered Garrison 20261 | -5/Garrison | Accompanied by 4 allies 20311 | -5/Garrison | Triggered checkpoint 20453 | -5/Garrison | Spotted B-75 Beast 20462 | -5/Garrison | Triggered checkpoint 20463 | -5/Garrison | Triggered checkpoint 20473 | -5/Garrison | Triggered checkpoint 20603 | -5/Garrison | Garrison Relay disabled 20661 | -5/Garrison | Triggered checkpoint 20767 | -5/Garrison | Triggered checkpoint 20788 | -5/Garrison | Garrison Relay disabled 20816 | -5/Garrison | Spotted B-75 Beast 20843 | -5/Garrison | Lost 3 allies 20847 | -5/Garrison | Rewired B-86 Titan 20849 | -5/Garrison | Spotted B-86 Titan 20850 | -5/Garrison | Allies destroyed B-86 Titan 20865 | -5/Garrison | Allies destroyed B-75 Beast 20867 | -5/Garrison | Rewired B-90 Cyclops 20942 | -5/Garrison | Discovered new exit (range 8) 21050 | -5/Garrison | Triggered checkpoint 21106 | -5/Garrison | Triggered checkpoint 21134 | -5/Garrison | Discovered new exit (range 11) 21136 | -5/Garrison | Spotted Striker 21137 | -5/Garrison | Spotted Striker 21152 | -5/Garrison | Destroyed Striker 21154 | -5/Garrison | Destroyed Striker 21209 | -5/Garrison | Garrison Relay disabled 21233 | -5/Garrison | Garrison Relay disabled 21350 | -5/Garrison | Found Gamma Bomb Array 21496 | -5/Garrison | Garrison Relay disabled 21528 | -5/Garrison | Triggered checkpoint 21770 | -5/Garrison | Discovered new exit (range 11) 21795 | -5/Garrison | Triggered checkpoint 21839 | -5/Garrison | Triggered checkpoint 21852 | -5/Garrison | Garrison Relay disabled 22067 | -5/Garrison | Destroyed Titan 6a 22160 | -5/Garrison | Expanded RIF knowledge: Hotswap 22306 | -5/Garrison | Entered Factory 22306 | -4/Factory | Accompanied by 9 allies 22306 | -4/Factory | Evolved 2 slots: Power x1, Utility x1 22556 | -4/Factory | First assault squad dispatched 22630 | -4/Factory | Build established: Botlord-Tank 22984 | -4/Factory | P-70 Sage assimilated allied Sentinel 6i 23070 | -4/Factory | Lost 6 allies 23312 | -4/Factory | P-70 Sage assimilated allied Administrator 7a 23414 | -4/Factory | Discovered new exit (range 10) 23474 | -4/Factory | Lost 4 allies 23519 | -4/Factory | Destroyed 8 combat bots 23607 | -4/Factory | Entered Armory 23640 | -4/Armory | System corruption reached 10% 23928 | -4/Armory | P-70 Sage assimilated allied Assassin 7b 23930 | -4/Armory | P-70 Sage assimilated allied Assassin 7a 24106 | -4/Armory | Build established: Botlord-Gunner 24884 | -4/Armory | Discovered new exit (range 6) 24986 | -4/Armory | Build established: Scavenger-Gunner 25750 | -4/Armory | Entered Research 25750 | -3/Research | Evolved 2 slots: Utility x2 25752 | -3/Research | Identified exit to DSF 26073 | -3/Research | Build established: Gunner 26712 | -3/Research | Found Prototype Processor 26712 | -3/Research | Identified Exp. Signal Interpreter 26996 | -3/Research | Cargo convoy interrupted 26996 | -3/Research | Unchained authorized (CL-0N3) 26996 | -3/Research | Spotted Executioner 26996 | -3/Research | Spotted Striker 27005 | -3/Research | Destroyed Striker 27035 | -3/Research | Destroyed Executioner 27036 | -3/Research | Exiles provided nearest exit location to -2/Research 27076 | -3/Research | Lost 3 parts (1p1u1w) 27077 | -3/Research | Destroyed 12 combat bots 27233 | -3/Research | Entered another Research area 27233 | -2/Research | Evolved 2 slots: Propulsion x1, Weapon x1 27445 | -2/Research | Discovered new exit (range 8) 27748 | -2/Research | Lost 4 parts (1u3w) 28186 | -2/Research | Fabricated Enh. Hardcell Cannon? 28204 | -2/Research | Build established: Bothacker-Gunner 28225 | -2/Research | Spotted B-90 Cyclops 28410 | -2/Research | Found Prototype Device 28410 | -2/Research | Identified Exp. Thermal Shield 28460 | -2/Research | Identified exit to Testing 28647 | -2/Research | Discovered new exit (range 9) 28748 | -2/Research | System corruption reached 10% 28790 | -2/Research | Entered Access 28790 | -1/Access | Evolved 2 slots: Power x1, Utility x1 28808 | -1/Access | Lost 7 parts (1p1n2u3w) 28900 | -1/Access | Energy Cycler disabled 29073 | -1/Access | Destroyed 8 combat bots 29118 | -1/Access | Build established: Botlord-Tank 29554 | -1/Access | Build established: Botlord-Gunner 29562 | -1/Access | Destroyed 8 combat bots 29797 | -1/Access | Spotted B-99 Colossus 30264 | -1/Access | System corruption reached 10% 30774 | -1/Access | Discovered new exit (range 9) 31714 | -1/Access | Entered Command 32138 | -1/Command | Found Prototype Device 32138 | -1/Command | Identified Exp. Actuator Array 32223 | -1/Command | Build established: Botlord-Tank 32658 | -1/Command | Lost 3 parts (1u2w) 33195 | -1/Command | Build established: Bothacker-Tank 33590 | -1/Command | Spotted M Guard 33591 | -1/Command | Spotted M Guard 33592 | -1/Command | Spotted Combat Programmer 33593 | -1/Command | Spotted Combat Programmer 33634 | -1/Command | System corruption reached 30% 33710 | -1/Command | Lost 8 parts (1n2u5w) 33821 | -1/Command | Lost 10 parts (2p2n4u2w) 33856 | -1/Command | Core integrity fell below 50% 33937 | -1/Command | Assimilated M Guard with formatsys_high 33948 | -1/Command | Found Prototype Launcher 33948 | -1/Command | Identified Hellfire Missile Launcher 33984 | -1/Command | Destroyed Combat Programmer 34010 | -1/Command | Destroyed Combat Programmer 34010 | -1/Command | All MAIN.C guards destroyed 34033 | -1/Command | Build established: Mutant 34352 | -1/Command | Build established: Hacker-Mutant 34644 | -1/Command | Spotted Alpha 7 34644 | -1/Command | Spotted Alpha 7 34644 | -1/Command | Spotted Striker 34644 | -1/Command | Spotted Striker 34644 | -1/Command | Spotted Executioner 34644 | -1/Command | Spotted Executioner 34644 | -1/Command | Spotted Executioner 34644 | -1/Command | Spotted Executioner 34646 | -1/Command | Spotted B-99 Colossus 34650 | -1/Command | Spotted B-99 Colossus 34652 | -1/Command | Discovered new exit (range 18) 34655 | -1/Command | Allies destroyed Executioner 34663 | -1/Command | Core integrity fell below 20% 34668 | -1/Command | Destroyed by B-99 Colossus with Linear Accelerator Last Messages --------------- 34664_ Triggered Stasis Trap. 34664_ A bubble of rippling energy engulfs the area. 34664_ Field strength at 94. 34664_ K-01 Serf collects debris. 34664_ Slug penetrates Door. 34664_ Penetrated by Slug. 34664_ Slug penetrates Striker. 34664_ Slug penetrates Door. 34665_ Field strength at 13. 34666_ Stasis field depleted. 34666_ Penetrated by Slug. 34666_ Slug penetrates Wall. 34666_ Penetrated by Slug. 34666_ Slug penetrates Wall. 34666_ Penetrated by Slug. 34667_ K-01 Serf collects debris. 34667_ Triggered Stasis Trap. 34667_ A bubble of rippling energy engulfs the area. 34667_ Field strength at 74. [Achievement: Punisher] Map ----- +----------------------------------------------------+ | ????# ##### #??????# "" #???# """" #??? | | ????# #???######??????# """"#???# #??? | | ????# #???????????????# """"#???# #??? | | ????# #???????????????# "" #???# * #??? | | ????# #???????????????# #???# * #??? | | ????# #???########????# #???#= #??? | | ????# #???# ##########+#############+####### | | ????# ##### | | ????# T" | | ????# "" | | ????# ##### | | ????# #???# ###########################"###+ | | ????# #???### #?????????????????????????## | | ????# #?????# #??????????????????????????# | | ????# #?????# #??????????????????????????# | | ????# #?????# #??????????????????????????# | | ????# #?????# #????????????###########???# | | ????# #?????# ##?###?????##BB ???# | | ????# #?????# # ?#;######;;BB ???####" | | ????# #?????# # ##; # #%[ ; ^^ ??????????## | | ????# #?????# ##;% E!*! "??????????????# | | ???## ##????# +% ^k% "??? "?????????# | | ???# #????# %; % ^ ^ " "< "?????????# | | ???# "" ###### %+% = "" "?????????# | | ???# "T ! %+^ K^%=E "??????????????# | | ???# ##########""# ^ K@ ^ "??????????????# | | ??###+########### ####7#!# ; ;BB ^ #?????# | | ??# ####???#########BB #?????# | | ??# #????????????????? #?????# | | ??# * #????????????????????########?????? | | ??# ""#?????????????????????????????????? | | ??# ""#?????????????????????????????????? | | ??# ""#?????????????????????????????????? | | ??# "" T#?????????????????????????????????? | | ??# """" ""#?????????????????????????????????? | | ??# """" ""#?????????????????????????????????? | | ??# "" ""#?????????????????????????????????? | | ??# #?????????????????????????????????? | | ??# #?????????????????????????????????? | | ??##############?????????????????????????????????? | | ?????????????????????????????????????????????????? | | ?????????????????????????????????????????????????? | | ?????????????????????????????????????????????????? | | ?????????????????????????????????????????????????? | | ?????????????????????????????????????????????????? | | | | | | | | | | | +----------------------------------------------------+ Best States ------------- Heat Dissipation 128 Coolant Potential 100 Energy Generation 81 Energy Capacity 875 Matter Stores 316 Matter Capacity 350 Sight Range 23 Terrain Scan Density 10 Jamming Range 16 Cloak Strength 4 Base Temperature (-) 200 Armor Coverage 375 Resistance: TH 30 Resistance: EM 25 Core Shielding 40 Propulsion Shielding 66 Weapon Shielding 66 Weapon Cycling 20 Phase Shifting 15 Evasion (%) 80 Targeting Accuracy 38 Melee Accuracy 5 Core Analysis 9 Recoil Reduction 6 Kinecelleration 40 Offensive Hacking 10 Defensive Hacking 10 Relay Coupler Types 2 Relay Coupler Value 63 Item Schematics ----------------- Imp. Datajack | -8/Materials | Scanalyzed Imp. Grenade Launcher | -8/Materials | Scanalyzed Weapon Mount | -5/Factory | Scanalyzed Robot Schematics ------------------ None Fabricated ------------ Enh. Hardcell Cannon | x2 | -2/Research | Preloaded Repaired ---------- Nothing Studied --------- Flak Cannon | -8/Materials | Hacked Lgt. Deuterium Engine | -8/Materials | Hacked Imp. Grenade Launcher | -8/Materials | Hacked Imp. Datajack | -8/Materials | Hacked Arm. Huge Wheel | -7/Factory | Hacked Carbon-fiber Leg | -5/Factory | Hacked Flexi-carbon Leg | -5/Factory | Hacked Angular Momentum Engine | -5/Factory | Hacked Enh. Gauss Cannon | -5/Factory | Hacked Coil Gun | -5/Factory | Hacked Myomer Leg | -5/Factory | Hacked KE Penetrator | -5/Factory | Hacked Imp. Carbon-fiber Leg | -5/Factory | Hacked Hvy. Phase Cannon | -5/Factory | Hacked Enh. Hardcell Cannon | -2/Research | Hacked Alien Tech Used ----------------- None Achievements -------------- Powerful Protocols Punisher Challenges ------------ None Game ------ Seed TacticalLightningAutohacker Manual? 0 Play Time 06:55:42 Cumulative 526.2 hours Start 2026.01.27 @ 08:30:07 End 2026.02.01 @ 13:10:45 Sessions 12 Manual Loads 0 Difficulty Rogue Special Mode None Game No. 208 Rogue 135 Adventurer 68 Explorer 5 Win Type - Total 40 Types 21/3/4/5/3/0/1/1/0/2 Lore% 85 Gallery% 80 Achievement% 66 Wizard Run 0 Options --------- Layout 0 ASCII 0 Keyboard 0 Movement Numpad Keybinds 0 Fullscreen 1 Font 24/Smallcaps Map View 76x50 Zoom Use 0% Tactical HUD 1 Map Filters NONE Filters NONE Steam 1 RUN: fe307d2d-b72c-4f71-8de7-b15e410a1f86